Cogmind - Beta 10.2 @@@ ROGUE MODE // 2020.10.30 @ 18:04:28 // Halloween2020/ForbiddenLore Player: W_W Result: Destroyed by as-21217 with Assembled Heavy Rifle Performance ------------- Evolutions (0) 0 Regions Visited (4) 800 Robots Destroyed (36) 180 Value Destroyed (479) 479 Prototype IDs (23) 460 Alien Tech Used (0) 0 Bonus (300) 300 TOTAL SCORE: 2219 Bonus ------- Aligned with FarCom 300 Cogmind --------- Core Integrity 0/250 Matter 244/300 Energy 52/100 System Corruption 7% Temperature Cool (0) Movement Core (150) Ox2 Location -9/Mines Parts ------- > --- POWER (1) -------- (None) > --- PROPULSION (2) --- (None) > --- UTILITY (2) ------ Lightpack 2.0 > --- WEAPON (2) ------- EM Pulse Gun > --- INVENTORY (24) --- Light Ion Engine Light Treads Large Storage Unit Large Storage Unit High-capacity Storage Unit Large Battery (300) Large Matter Pod (150) Light Armor Plating Datajack Enhanced Flamer Hammer Peak State ------------ > --- POWER ------------ Ion Engine > --- PROPULSION ------- Light Treads Light Treads > --- UTILITY ---------- Lightpack 2.0 > --- WEAPON ----------- Assault Rifle Assault Rifle > --- INVENTORY -------- Light Ion Engine Large Battery Light Armor Plating EM Pulse Gun Medium Laser Datajack Enhanced Flamer Hammer [Rating: 26] Favorites ----------- Power Ion Engine Engine Ion Engine Propulsion Light Treads Treads Light Treads Utility Small Matter Pod Storage Small Matter Pod Weapon Assault Rifle Energy Gun Medium Laser Ballistic Gun Assault Rifle Launcher Grenade Launcher Build | -11 -10 -10 -10 -9 ------- Run | Scr Mat Min Exi Min Slots Evolved . | . . . . . Power . | . . . . . Propulsion . | . . . . . Utility . | . . . . . Weapon . | . . . . . Parts Attached 18 | 7 3 2 1 5 Power 3 | 1 1 . . 1 Engine 3 | 1 1 . . 1 Core . | . . . . . Reactor . | . . . . . Propulsion 3 | 2 . 1 . . Treads 3 | 2 . 1 . . Leg . | . . . . . Wheel . | . . . . . Hover . | . . . . . Flight . | . . . . . Utility 4 | 2 1 . 1 . Device . | . . . . . Storage 4 | 2 1 . 1 . Processor . | . . . . . Hackware . | . . . . . Protection . | . . . . . Artifact . | . . . . . Weapon 8 | 2 1 1 . 4 Energy Gun 2 | . . . . 2 Energy Cannon . | . . . . . Ballistic Gun 5 | 2 1 1 . 1 Ballistic Cannon . | . . . . . Launcher 1 | . . . . 1 Special Weapon . | . . . . . Impact Weapon . | . . . . . Slashing Weapon . | . . . . . Piercing Weapon . | . . . . . Special Melee Weapon . | . . . . . Unidentified Prototypes . | . . . . . Parts Lost 9 | . 1 1 . 7 Power 3 | . 1 . . 2 Propulsion 3 | . . 1 . 2 Utility . | . . . . . Weapon 3 | . . . . 3 Highest Loss Streak 7 | . 1 1 . 7 Average Slot Usage (%) 96 | . 99 97 91 67 Engine 13 | . 13 14 14 10 Treads 26 | . 28 25 28 14 Storage 25 | . 28 28 19 14 Ballistic Gun 27 | . 27 28 28 21 Naked Turns . | . . . . . Heaviest Build 42 | 12 42 42 42 14 Greatest Support 40 | 40 40 40 40 40 Greatest Overweight (x) 2 | 1 1 2 1 2 Average Overweight (x) . | . . 1 . . Largest Inventory Capacity 24 | 6 12 12 24 24 Average Capacity 13 | 5 11 12 18 24 Most Carried 16 | 6 12 12 16 15 Average Carried 10 | 3 8 11 12 14 Final Capacity 24 | 6 12 12 24 24 Final Carried 15 | 6 12 11 15 11 Class Distribution -------------------- 86% | Mutant 13% | Hauler-Mutant Dominant Class ---------------- Mutant | -10/Materials Mutant | -10/Mines Hauler-Mutant | -10/Exiles Hauler-Mutant | -9/Mines Resources | -11 -10 -10 -10 -9 ----------- Run | Scr Mat Min Exi Min Matter Collected 872 | 337 382 133 20 . Remotely . | . . . . . Salvage Created 1099 | 191 718 183 . 7 Parts 85 | 21 57 7 . . Haulers Intercepted 1 | . 1 . . . Recyclers Shooed 1 | 1 . . . . Parts Field Recycled . | . . . . . Retrieved Matter . | . . . . . Parts Self-Destructed . | . . . . . Prevented . | . . . . . Kills | -11 -10 -10 -10 -9 ------- Run | Scr Mat Min Exi Min Combat Hostiles Destroyed 15 | . 12 2 . 1 Guns 14 | . 12 2 . . AOE 1 | . . . . 1 Classes Destroyed 9 | 3 5 . . 1 Worker 7 | 2 4 1 . . Builder 1 | . 1 . . . Tunneler 5 | 5 . . . . Hauler 1 | . 1 . . . Recycler 5 | 1 3 1 . . Watcher 2 | . 2 . . . Swarmer 6 | . 6 . . . Grunt 8 | . 6 2 . . Assembled 1 | . . . . 1 Best Kill Streak 5 | 5 5 4 . 1 Combat Bots Only 3 | . 3 2 . 1 Max Kills in Single Turn 1 | 1 1 1 . 1 Gunslinging . | . . . . . Exploded 1 | . . . . 1 Melee . | . . . . . Uniques/NPCs Destroyed . | . . . . . Combat | -11 -10 -10 -10 -9 -------- Run | Scr Mat Min Exi Min Damage Taken 1360 | . 348 167 . 845 Core 255 | . 49 29 . 177 Absorbed by Shields . | . . . . . Core Remaining (%) 100 | 100 . . . . Volleys Fired 91 | 11 62 11 . 7 Largest 2 | 2 2 2 . 2 Hottest 70 | 40 40 40 . 70 Shots Fired 180 | 22 123 22 . 13 Gun 178 | 22 123 22 . 11 Cannon . | . . . . . Launcher 2 | . . . . 2 Special . | . . . . . Kinetic 174 | 22 123 22 . 7 Thermal 2 | . . . . 2 Explosive 2 | . . . . 2 Electromagnetic 2 | . . . . 2 Robot Hit Streak 12 | 5 11 12 . 3 Robot Miss Streak 3 | 1 3 1 . 3 Penetration Max . | . . . . . Secondary Targets 2 | . 2 . . . Max Gunslinging Chain 1 | . 1 . . . Shots Hit Robots 119 | 11 83 19 . 6 Core Hits 56 | 9 33 8 . 6 Critical Hits 2 | . 2 . . . Critical Kills 1 | . 1 . . . Critical Parts Destroyed 1 | . 1 . . . Melee Attacks . | . . . . . Impact . | . . . . . Slashing . | . . . . . Piercing . | . . . . . Sneak Attacks . | . . . . . Combat Hostiles . | . . . . . Follow-up Attacks . | . . . . . Damage Inflicted 1511 | 150 885 213 . 263 Guns 1327 | 150 885 213 . 79 Cannons . | . . . . . Explosions 184 | . . . . 184 Melee . | . . . . . Ramming . | . . . . . Kinetic 1314 | 150 885 213 . 66 Thermal 13 | . . . . 13 Explosive 184 | . . . . 184 Electromagnetic . | . . . . . Impact . | . . . . . Slashing . | . . . . . Piercing . | . . . . . Highest Corruption 7 | . 1 1 1 7 Average Corruption 1 | . 1 1 1 2 Corruption Purged . | . . . . . Effects 13 | . 4 6 3 . Message Errors 5 | . 2 1 2 . Energy Discharges 3 | . . 2 1 . Data Loss (minor) 2 | . . 2 . . Targeting Errors 2 | . 1 1 . . Weapon Failures 1 | . 1 . . . Overload Shots . | . . . . . Overflow Damage . | . . . . . Projectiles . | . . . . . Explosions . | . . . . . Melee . | . . . . . Knockbacks . | . . . . . Impact . | . . . . . Kinetic . | . . . . . Secondary . | . . . . . Self-Inflicted Damage 27 | . . . . 27 Shots 1 | . . . . 1 Rammed . | . . . . . Targets Rammed . | . . . . . Kicked . | . . . . . Crushed . | . . . . . Highest Temperature 15 | . 8 4 . 15 Average Temperature 4 | . 4 2 . 9 Received Heat Transfer 213 | . 117 96 . . Siege Activations . | . . . . . Robots Corrupted . | . . . . . Combat Hostiles . | . . . . . Parts Fried . | . . . . . Impact Corruptions . | . . . . . Robots Melted . | . . . . . Combat Hostiles . | . . . . . Parts Melted . | . . . . . Heat Transferred 37 | . . . . 37 Parts Sabotaged . | . . . . . Parts Stolen . | . . . . . Parts Stripped . | . . . . . Power Chain Reactions . | . . . . . Missiles Intercepted . | . . . . . Alert | -11 -10 -10 -10 -9 ------- Run | Scr Mat Min Exi Min Peak Influence 294 | 40 294 62 . 15 Initial 27 | . 26 27 . . Average 70 | 18 147 17 . 3 Maximum Alert Level 1 | . 1 . . . Low Security (%) 92 | 100 81 100 . 100 Level 1 7 | . 18 . . . Level 2 . | . . . . . Level 3 . | . . . . . Level 4 . | . . . . . Level 5 . | . . . . . High Security . | . . . . . Max Security . | . . . . . Squads Dispatched 2 | . 2 . . . Investigation 1 | . 1 . . . Extermination . | . . . . . Reinforcement 1 | . 1 . . . Assault . | . . . . . Garrison . | . . . . . Intercept . | . . . . . Construction Impeded . | . . . . . Haulers Reinforced . | . . . . . Stealth | -11 -10 -10 -10 -9 --------- Run | Scr Mat Min Exi Min Distress Signals 1 | . 1 . . . Communications Jammed . | . . . . . Distress Signals . | . . . . . Times Spotted 31 | . 21 2 . 8 Peak Tracking Total 11 | . 5 2 . 11 Tactical Retreats . | . . . . . Traps | -11 -10 -10 -10 -9 ------- Run | Scr Mat Min Exi Min Traps Triggered 1 | . 1 . . . Indirectly . | . . . . . Trap Hack Attempts . | . . . . . Triggered . | . . . . . Disarmed . | . . . . . Reprogrammed . | . . . . . Reused . | . . . . . Traps Extracted . | . . . . . Installed . | . . . . . Triggered . | . . . . . Machines | -11 -10 -10 -10 -9 ---------- Run | Scr Mat Min Exi Min Machines Disabled 1 | . 1 . . . Max in Single Turn 1 | . 1 . . . Machines Sabotaged . | . . . . . Garrisons Compromised . | . . . . . Overloaded Fab Kills . | . . . . . Fab Network Shutdowns . | . . . . . Hacking | -11 -10 -10 -10 -9 --------- Run | Scr Mat Min Exi Min Machines Accessed 7 | . 5 1 1 . Terminals 6 | . 5 1 . . Fabricators . | . . . . . Repair Stations . | . . . . . Recycling Units . | . . . . . Scanalyzers . | . . . . . Garrison Access . | . . . . . Total Hacks 21 | . 18 2 1 . Successful 12 | . 9 2 1 . Failed 9 | . 9 . . . Catastrophic 1 | . 1 . . . Database Lockouts . | . . . . . Manual 1 | . . . 1 . Terminals 20 | . 18 2 . . Fabricators . | . . . . . Repair Stations . | . . . . . Recycling Units . | . . . . . Scanalyzers . | . . . . . Garrison Access . | . . . . . Terminal Hacks 12 | . 9 2 1 . Record 1 | . . 1 . . Branch Access Points 1 | . 1 . . . Emergency Access Points 1 | . 1 . . . Recycling Unit Index 1 | . 1 . . . Alert Level 1 | . 1 . . . Unreport Threat 1 | . 1 . . . Dispatch Records 1 | . 1 . . . Maintenance Status 1 | . 1 . . . Transport Status 1 | . 1 . . . Zone Layout 2 | . 1 1 . . EX-Prototype ID Bank 1 | . . . 1 . Fabricator Hacks . | . . . . . Repair Station Hacks . | . . . . . Recycling Unit Hacks . | . . . . . Scanalyzer . | . . . . . Garrison Access Hacks . | . . . . . Unauthorized Hacks . | . . . . . Terminals . | . . . . . Fabricators . | . . . . . Repair Stations . | . . . . . Recycling Units . | . . . . . Scanalyzers . | . . . . . Garrison Access . | . . . . . Data Cores Recovered . | . . . . . Used . | . . . . . Hacking Detections 6 | . 5 1 . . Full Trace Events 2 | . 2 . . . Feedback Events 1 | . 1 . . . Corruption 1 | . 1 . . . Feedback Blocked . | . . . . . Robot Schematics Acquired . | . . . . . Robots Built . | . . . . . Matter . | . . . . . Time . | . . . . . Total Robot Build Rating . | . . . . . Part Schematics Acquired . | . . . . . Parts Built . | . . . . . Matter . | . . . . . Time . | . . . . . Total Part Build Rating . | . . . . . Parts Repaired . | . . . . . Time . | . . . . . Parts Recycled . | . . . . . Recycled Matter . | . . . . . Retrieved Matter . | . . . . . Retrieved Components . | . . . . . Parts Scanalyzed . | . . . . . Part Schematics Acquired . | . . . . . Parts Damaged . | . . . . . Bothacking | -11 -10 -10 -10 -9 ------------ Run | Scr Mat Min Exi Min Used RIF Installer . | . . . . . Robots Hacked . | . . . . . Non-combat . | . . . . . Combat . | . . . . . Robot Hacks Applied . | . . . . . Relay Couplers Released . | . . . . . Robots Rewired . | . . . . . Allies Hacked . | . . . . . Hacks Repelled . | . . . . . Allies | -11 -10 -10 -10 -9 -------- Run | Scr Mat Min Exi Min Total Allies 2 | . . . . 2 Largest Group 2 | . . . . 2 Highest-Rated Group 45 | . . . . 45 Highest-Rated Ally 31 | . . . . 31 Total Orders . | . . . . . Ally Attacks 6 | . . . . 6 Total Damage 74 | . . . . 74 Kills 1 | . . . . 1 Allies Corrupted . | . . . . . Allies Melted . | . . . . . Turrets Deployed 1 | . . . 1 . Intel | -11 -10 -10 -10 -9 ------- Run | Scr Mat Min Exi Min Robot Analysis Total . | . . . . . Derelict Logs Recovered 2 | . . 2 . . Drone Launches . | . . . . . Drone Recoveries . | . . . . . Exploration | -11 -10 -10 -10 -9 ------------- Run | Scr Mat Min Exi Min Turns Passed 2942 | 139 934 1189 640 40 Spaces Moved 1487 | 60 425 621 371 10 Core 9 | 8 . . . 1 Treads 1478 | 52 425 621 371 9 Legs . | . . . . . Wheels . | . . . . . Hover . | . . . . . Flight . | . . . . . Fastest Speed 50 | 50 160 180 160 150 Average Speed 174 | 148 172 182 168 159 Slowest Speed 200 | 160 180 200 180 160 Overloaded Moves . | . . . . . Propulsion Burnouts . | . . . . . Robots Hopped 2 | . . . 2 . Cave-ins Triggered . | . . . . . Exploration Rate (%) 51 | 4 79 95 70 8 Regions Visited 4 Branch Regions 3 Pre-discovered Areas 1 | . . 1 . . Known Exits Taken 1 | . 1 . . . Unknown Exits Taken 3 | 1 . 1 1 . Scrap Searched 1 | . . 1 . . Spaces Dug . | . . . . . Terrain Destroyed 19 | . . . . 19 Melee . | . . . . . Projectile . | . . . . . AOE 19 | . . . . 19 Terrain Rammed . | . . . . . Walls Destroyed . | . . . . . Machines Disabled . | . . . . . Actions | -11 -10 -10 -10 -9 --------- Run | Scr Mat Min Exi Min Total 1653 | 84 505 656 386 22 Wait 22 | 1 3 16 2 . Move 1479 | 59 424 620 366 10 Hop 2 | . . . 2 . Pick Up 31 | 6 10 3 12 . Fast Attach 9 | 7 . 1 1 . Attach 6 | . 2 . . 4 Detach . | . . . . . Swap 3 | . 1 1 . 1 Drop 10 | . 3 4 3 . Fire 91 | 11 62 11 . 7 Melee . | . . . . . Ram . | . . . . . Kick . | . . . . . Crush . | . . . . . Escape Stasis . | . . . . . Rewire . | . . . . . Trap . | . . . . . Miscellaneous . | . . . . . Route ------- -11/Scrapyard -10/Materials (discovered 4 exits: [*Mat x2] / *Min x2) -10/Mines (discovered 3 exits: [*Mat x2] / *Exi) -10/Exiles (discovered 2 exits: [*Min x2]) -9/Mines History --------- Turn | Location | Event 28 | -11/Scrapyard | Discovered new exit (range 16) 140 | -11/Scrapyard | Entered Materials 189 | -10/Materials | Identified exit to Mines 300 | -10/Materials | Build established: Mutant 782 | -10/Materials | Discovered new exit (range 11) 870 | -10/Materials | Discovered new exit (range 10) 1074 | -10/Materials | Entered Mines 1245 | -10/Mines | A weapon hastily lodged in a ceiling crevice suddenly fell to the ground 1352 | -10/Mines | Discovered new exit (range 5) 1664 | -10/Mines | Learned location of Storage (-9) 1785 | -10/Mines | Discovered new exit (range 8) 2116 | -10/Mines | Deemed a non-threat by the Exiles lab entrance 2116 | -10/Mines | Discovered new exit (range 5) 2141 | -10/Mines | Learned 2 Materials zone layouts 2263 | -10/Mines | Entered Exiles 2290 | -10/Exiles | Discovered new exit (range 15) 2344 | -10/Exiles | Met 8R-AWN 2375 | -10/Exiles | Met EX-HEX 2429 | -10/Exiles | Met EX-BIN 2456 | -10/Exiles | Aligned with FarCom system 2458 | -10/Exiles | Given EX-Vault access code 2506 | -10/Exiles | Opened EX-Vault 2524 | -10/Exiles | DAS Turret deployed 2545 | -10/Exiles | Found Lightpack 2.0 2598 | -10/Exiles | Warned to stay clear of 0b10 Research branches 2642 | -10/Exiles | Met EX-DEC 2851 | -10/Exiles | Build established: Hauler-Mutant 2861 | -10/Exiles | Discovered new exit (range 15) 2903 | -10/Exiles | Left Exiles lab with Lightpack 2.0 2903 | -10/Exiles | Entered Mines 2904 | -9/Mines | Assembled infested the area 2933 | -9/Mines | Core integrity fell below 50% 2938 | -9/Mines | Core integrity fell below 20% 2943 | -9/Mines | Destroyed by as-21217 with Assembled Heavy Rifle Last Messages --------------- LOCATION=UNKNOWN GOAL=ESCAPE 02903_ Receiving FarCom transmissions... 02904_ ALERT: Infestation in the mines, dispatching Demolisher response squad. 02906_ A pair of derelicts emerge from the shadows: "We're, um, lost. You wouldn't happen to know the way out of here, would you?" 02922_ as-01880 destroyed. 02926_ Lgt. Treads destroyed. 02926_ Grenade Launcher destroyed. 02929_ Ion Engine destroyed. 02929_ Lgt. Treads destroyed. 02929_ System corrupted by crushing effect (+2). 02929_ System corrupted by crushing effect (+1). 02934_ Assault Rifle destroyed. 02935_ Ion Engine destroyed. 02935_ System corrupted by crushing effect (+3). 02935_ Knocked back. 02938_ Med. Laser destroyed. 02942_ Assault Rifle severed. Map ----- +----------------------------------------------------+ | | | | | | | | | | | | | | | ???????????????????????????????????? | | ???????????????????????????????????? | | ?????????????????????###???????????? | | ????????????????????## #??????????? | | ???????????????????## ##????????? | | ??????????????????## #????????? | | ??????????????????# ##???????? | | ???????????????????# #####???? | | ???????????????????# ###?? | | ????????????????#### #?? | | ?????????????# #?? | | ??????????????# ## #?? | | ??????????????### ???## ??? | | ????????????????## ??????# #???? | | ?????????????????????????##aa ##???? | | ?????????????????????????# #????? | | ????????????????????????## %a #????? | | ????????????????????????# a #????? | | ????????????????????????#@a #????? | | ??????????????????????? ###????? | | ?????????????????????# ## ##??????? | | ?????????????????????# ?# #???????? | | ???????????????????? ??# #???????? | | ??????????????????? ???# #???????? | | ??????????????????###????# ???????? | | ????????????????????????? ???????? | | ????????????????????????? ???????? | | ????????????????????????? ??????? | | ????????????????????????? ??????? | | ????????????????????????? #??????? | | ????????????????????????? #??????? | | ????????????????????????? ##??????? | | ????????????????????????? #????????? | | ???????????????????????????????????? | | ???????????????????????????????????? | | ???????????????????????????????????? | | ???????????????????????????????????? | | ???????????????????????????????????? | | ???????????????????????????????????? | | ???????????????????????????????????? | | ???????????????????????????????????? | | ???????????????????????????????????? | | ???????????????????????????????????? | +----------------------------------------------------+ Best States ------------- Heat Dissipation 25 Energy Generation 10 Energy Capacity 250 Matter Stores 350 Matter Capacity 350 Sight Range 16 Terrain Scan Density 10 Evasion (%) 40 Recoil Reduction 2 Item Schematics ----------------- None Robot Schematics ------------------ None Fabricated ------------ Nothing Alien Tech Used ----------------- None Achievements -------------- None Challenges ------------ None Game ------ Seed NuclearWeldingManipulator Manual? 0 Play Time 00:14:54 Cumulative 79.0 hours Start 2020.10.30 @ 17:50:30 End 2020.10.30 @ 18:04:28 Sessions 1 Manual Loads 0 Difficulty Rogue Special Mode Halloween2020/ForbiddenLore Game No. 70 Rogue 70 Adventurer 0 Explorer 0 Win Type - Total 0 Types 0/0/0/0/0/0/0/0/0 Lore% 33 Gallery% 37 Achievement% 28 Wizard Run 0 Options --------- ASCII 0 Keyboard 0 Movement Numpad Keybinds 0 Fullscreen 1 Font 18/SmallcapsGlow Map View 76x50 Tactical HUD 1 Map Filters NONE Filters NONE Steam 1 RUN: 1e43d6d3-64ee-4dad-9f77-dadf7b82f291